Cogmind - Beta 13 @@@ ROGUE MODE // 2024.05.02 @ 08:52:25 Player: ThatBishHoly Result: Destroyed by G-34 Mercenary with Small Laser Performance ------------- Evolutions (1) 500 Regions Visited (3) 600 Robots Destroyed (47) 235 Value Destroyed (953) 953 Prototype IDs (1) 20 Alien Tech Used (0) 0 Bonus (10) 10 TOTAL SCORE: 2318 Bonus ------- High Alert Combat Kills 10 Cogmind --------- Core Integrity 0/400 Matter 300/300 Energy 89/100 System Corruption 0% Temperature Cool (54) Movement Core (150) Ox2 Location -9/Mines Parts ------- > --- POWER (1) -------- (None) > --- PROPULSION (4) --- (None) > --- UTILITY (2) ------ Small Storage Unit Visual Processing Unit > --- WEAPON (2) ------- Particle Cannon > --- INVENTORY (8) ---- Heat Sink Disposable Heat Sink Visual Processing Unit Signal Interpreter Particle Cannon Mining Laser Peak State ------------ > --- POWER ------------ Improved Ion Engine > --- PROPULSION ------- Aluminum Leg Aluminum Leg Wheel Wheel > --- UTILITY ---------- Small Storage Unit Visual Processing Unit > --- WEAPON ----------- Particle Cannon Advanced Beam Cannon > --- INVENTORY -------- Disposable Heat Sink Disposable Heat Sink Signal Interpreter Particle Cannon Particle Cannon Grenade Launcher Mining Laser [Rating: 15] Favorites ----------- Power Improved Ion Engine Engine Improved Ion Engine Propulsion Light Treads Treads Light Treads Leg Aluminum Leg Wheel Wheel Utility Small Storage Unit Device Seismic Detector Storage Small Storage Unit Processor Visual Processing Unit Weapon Particle Cannon Energy Gun Medium Laser Energy Cannon Particle Cannon Launcher Grenade Launcher Build | -11 -10 -9 -9 ------- Run | Yrd Mat Mat Min Slots Evolved 2 | . . 2 . Power . | . . . . Propulsion 2 | . . 2 . Utility . | . . . . Weapon . | . . . . Parts Attached 23 | 7 5 11 . Power 4 | 1 1 2 . Engine 4 | 1 1 2 . Core . | . . . . Reactor . | . . . . Propulsion 8 | 2 . 6 . Treads 2 | 2 . . . Leg 2 | . . 2 . Wheel 4 | . . 4 . Hover . | . . . . Flight . | . . . . Utility 3 | 2 1 . . Device 1 | 1 . . . Storage 1 | 1 . . . Processor 1 | . 1 . . Hackware . | . . . . Protection . | . . . . Artifact . | . . . . Weapon 8 | 2 3 3 . Energy Gun 2 | 2 . . . Energy Cannon 4 | . 2 2 . Ballistic Gun . | . . . . Ballistic Cannon . | . . . . Launcher 2 | . 1 1 . Special Weapon . | . . . . Impact Weapon . | . . . . Slashing Weapon . | . . . . Piercing Weapon . | . . . . Special Melee Weapon . | . . . . Unidentified Prototypes 1 | . . 1 . Parts Lost 9 | . 2 5 2 Power 2 | . 1 . 1 Propulsion 4 | . . 4 . Utility . | . . . . Weapon 3 | . 1 1 1 Highest Loss Streak 2 | . 1 2 2 To Critical Strikes . | . . . . Average Slot Usage (%) 81 | . 90 78 55 Engine 8 | . 5 11 11 Treads 13 | . 28 . . Leg 2 | . . 6 . Wheel 7 | . . 17 . Device 3 | . 8 . . Storage 12 | . 14 11 11 Processor 8 | . 6 11 11 Energy Gun 5 | . 11 . . Energy Cannon 14 | . 12 17 11 Launcher 4 | . 4 3 11 Naked Turns . | . . . . Heaviest Build 20 | 13 18 20 19 Greatest Support 40 | 40 40 40 3 Greatest Overweight (x) 6 | . . 6 6 Average Overweight (x) . | . . . 5 Largest Inventory Capacity 8 | 8 8 8 8 Average Capacity 7 | 6 8 8 8 Most Carried 8 | 6 8 8 6 Average Carried 5 | 3 6 5 5 Final Capacity 8 | 8 8 8 8 Final Carried 8 | 5 8 5 6 Class Distribution -------------------- 76% | Mutant 23% | Scavenger-Mutant Dominant Class ---------------- Mutant | -10/Materials Scavenger-Mutant | -9/Materials Mutant | -9/Mines Resources | -11 -10 -9 -9 ----------- Run | Yrd Mat Mat Min Matter Collected 566 | 260 145 140 21 Remotely . | . . . . Salvage Created 1224 | 186 353 610 75 Parts 70 | 11 23 31 5 Haulers Intercepted . | . . . . Recyclers Shooed 4 | . . 4 . Parts Field Recycled . | . . . . Retrieved Matter . | . . . . Parts Self-Destructed . | . . . . Prevented . | . . . . Kills | -11 -10 -9 -9 ------- Run | Yrd Mat Mat Min Combat Hostiles Destroyed 34 | . 12 18 4 Guns 5 | . 5 . . Cannons 20 | . 3 16 1 AOE 8 | . 4 1 3 Classes Destroyed 9 | 3 3 2 1 Worker 3 | 2 . 1 . Tunneler 3 | 2 1 . . Recycler 2 | 1 . 1 . Operator 1 | . . 1 . Watcher 4 | . 1 3 . Swarmer 17 | . 3 11 3 Grunt 12 | . 9 3 . Brawler 1 | . . . 1 Sentry 4 | . . 4 . Best Kill Streak 5 | 3 3 5 3 Combat Bots Only 4 | . 3 4 3 Max Kills in Single Turn 2 | 2 2 2 2 Gunslinging . | . . . . Exploded 1 | . 1 1 1 Melee . | . . . . Uniques/NPCs Destroyed . | . . . . Combat | -11 -10 -9 -9 -------- Run | Yrd Mat Mat Min Hostile Shots Fired 179 | . 59 101 19 Missed 44 | . 14 23 7 Damage Taken 1709 | 26 478 937 268 Core 504 | . 97 257 150 Absorbed by Shields . | . . . . Regen/Repaired (Parts) 34 | . . 34 . Core Remaining (%) 80 | 100 61 . . Volleys Fired 97 | 6 27 59 5 Largest 2 | 2 2 2 2 Hottest 136 | 90 136 136 98 Shots Fired 153 | 12 48 85 8 Gun 43 | 12 31 . . Cannon 94 | . 8 81 5 Launcher 16 | . 9 4 3 Special . | . . . . Kinetic . | . . . . Thermal 123 | 6 31 81 5 Explosive 16 | . 9 4 3 Electromagnetic 14 | 6 8 . . Robot Hit Streak 4 | 4 4 4 3 Robot Miss Streak 5 | 2 2 5 2 Penetration Max . | . . . . Secondary Targets 1 | . 1 . . Max Gunslinging Chain 1 | . 1 . . Shots Hit Robots 76 | 6 26 40 4 Core Hits 55 | 5 20 26 4 Critical Kills 1 | . . 1 . Critical Parts Destroyed . | . . . . Critical Strikes 4 | . 3 1 . Burn 3 | . 3 . . Meltdown 1 | . . 1 . Melee Attacks . | . . . . Impact . | . . . . Slashing . | . . . . Piercing . | . . . . Sneak Attacks . | . . . . Combat Hostiles . | . . . . Follow-up Attacks . | . . . . Damage Inflicted 2339 | 148 846 1084 261 Guns 322 | 80 242 . . Cannons 1047 | . 144 821 82 Explosions 955 | 68 460 248 179 Melee . | . . . . Ramming 15 | . . 15 . Kinetic . | . . . . Thermal 1343 | 106 334 821 82 Explosive 887 | . 460 248 179 Electromagnetic 94 | 42 52 . . Impact . | . . . . Slashing . | . . . . Piercing . | . . . . Highest Corruption . | . . . . Average Corruption . | . . . . Corruption Purged . | . . . . Corruption Blocked . | . . . . Overload Shots . | . . . . Overflow Damage 75 | . 19 29 27 Projectiles 13 | . 11 2 . Explosions 62 | . 8 27 27 Melee . | . . . . Knockbacks . | . . . . Impact . | . . . . Kinetic . | . . . . Secondary . | . . . . Self-Inflicted Damage 192 | 27 . 103 62 Shots 7 | 1 . 3 3 Rammed 3 | . . 3 . Targets Rammed 5 | . . 5 . Kicked 2 | . . 2 . Crushed . | . . . . Highest Temperature 482 | 120 234 482 60 Average Temperature 134 | 50 75 173 32 Received Heat Transfer 411 | . 192 207 12 Effects 10 | . . 10 . Shutdowns 5 | . . 5 . Energy Bleed 1 | . . 1 . Interference 3 | . . 3 . Damage (minor) 1 | . . 1 . Siege Activations . | . . . . Robots Corrupted . | . . . . Combat Hostiles . | . . . . Parts Fried . | . . . . Impact Corruptions . | . . . . Robots Melted 1 | . . 1 . Combat Hostiles 1 | . . 1 . Parts Melted 5 | 1 . 4 . Heat Transferred 2825 | 161 1036 1480 148 Parts Sabotaged . | . . . . Parts Stolen . | . . . . Parts Stripped . | . . . . Power Chain Reactions 1 | 1 . . . Alert | -11 -10 -9 -9 ------- Run | Yrd Mat Mat Min Peak Influence 515 | 25 251 515 299 Initial 142 | . 16 34 142 Average 171 | 11 82 276 246 Maximum Alert Level 2 | . 1 2 1 Low Security (%) 61 | 100 93 36 3 Level 1 25 | . 6 32 96 Level 2 12 | . . 31 . Level 3 . | . . . . Level 4 . | . . . . Level 5 . | . . . . High Security . | . . . . Max Security . | . . . . Squads Dispatched 4 | . 3 1 . Investigation 1 | . 1 . . Extermination . | . . . . Reinforcement 3 | . 2 1 . Assault . | . . . . Garrison . | . . . . Intercept . | . . . . Searches Triggered . | . . . . Construction Impeded . | . . . . Haulers Reinforced . | . . . . Active Scanning Responses . | . . . . Cargo Convoy Interrupts . | . . . . Stealth | -11 -10 -9 -9 --------- Run | Yrd Mat Mat Min Distress Signals 5 | . . 5 . Communications Jammed . | . . . . Distress Signals . | . . . . Times Spotted 54 | . 17 30 7 Peak Tracking Total 9 | . 3 9 5 Tactical Retreats 5 | . . 5 . Traps | -11 -10 -9 -9 ------- Run | Yrd Mat Mat Min Traps Triggered . | . . . . Indirectly . | . . . . Trap Hack Attempts . | . . . . Triggered . | . . . . Disarmed . | . . . . Reprogrammed . | . . . . Reused . | . . . . Traps Extracted . | . . . . Installed . | . . . . Triggered . | . . . . Machines | -11 -10 -9 -9 ---------- Run | Yrd Mat Mat Min Machines Disabled 3 | . . 1 2 Max in Single Turn 1 | . . 1 1 Machines Repaired . | . . . . Machines Dismantled . | . . . . Machines Sabotaged . | . . . . Overloaded Fab Kills . | . . . . Hacking | -11 -10 -9 -9 --------- Run | Yrd Mat Mat Min Machines Accessed 6 | . 1 5 . Terminals 3 | . . 3 . Fabricators . | . . . . Repair Stations 2 | . 1 1 . Recycling Units 1 | . . 1 . Scanalyzers . | . . . . Garrison Access . | . . . . Total Hacks 16 | . 5 11 . Successful 7 | . 1 6 . Failed 9 | . 4 5 . Catastrophic . | . . . . Database Lockouts . | . . . . Manual . | . . . . Terminals 8 | . . 8 . Fabricators . | . . . . Repair Stations 7 | . 5 2 . Recycling Units 1 | . . 1 . Scanalyzers . | . . . . Garrison Access . | . . . . Terminal Hacks 3 | . . 3 . Zone Layout 3 | . . 3 . Fabricator Hacks . | . . . . Repair Station Hacks 3 | . 1 2 . Scan Component 2 | . 1 1 . Repair 1 | . . 1 . Recycling Unit Hacks 1 | . . 1 . Report Inventory 1 | . . 1 . Scanalyzer . | . . . . Garrison Access Hacks . | . . . . Unauthorized Hacks . | . . . . Terminals . | . . . . Fabricators . | . . . . Repair Stations . | . . . . Recycling Units . | . . . . Scanalyzers . | . . . . Garrison Access . | . . . . Data Cores Recovered 1 | . . 1 . Used . | . . . . Hacking Detections 4 | . 1 3 . Full Trace Events 1 | . 1 . . Feedback Events . | . . . . Feedback Blocked . | . . . . Robot Schematics Acquired . | . . . . Robots Built . | . . . . Authchips . | . . . . Time . | . . . . Total Robot Build Rating . | . . . . Part Schematics Acquired . | . . . . Parts Built . | . . . . Authchips . | . . . . Time . | . . . . Total Part Build Rating . | . . . . Parts Repaired 1 | . . 1 . Time 36 | . . 36 . Parts Recycled . | . . . . Recycled Matter . | . . . . Retrieved Matter . | . . . . Retrieved Components . | . . . . Parts Scanalyzed . | . . . . Part Schematics Acquired . | . . . . Parts Damaged . | . . . . Bothacking | -11 -10 -9 -9 ------------ Run | Yrd Mat Mat Min Used RIF Installer . | . . . . Robots Hacked . | . . . . Non-combat . | . . . . Combat . | . . . . Robot Hacks Applied . | . . . . Relay Couplers Released . | . . . . Fabnet Peak Effective % . | . . . . Robots Rewired . | . . . . Allies Hacked . | . . . . Hacks Repelled . | . . . . Allies | -11 -10 -9 -9 -------- Run | Yrd Mat Mat Min Total Allies . | . . . . Largest Group . | . . . . Highest-Rated Group . | . . . . Highest-Rated Ally . | . . . . Total Orders . | . . . . Ally Attacks . | . . . . Total Damage . | . . . . Kills . | . . . . Allies Corrupted . | . . . . Allies Melted . | . . . . Intel | -11 -10 -9 -9 ------- Run | Yrd Mat Mat Min Robot Analysis Total . | . . . . Derelict Logs Recovered 1 | . . . 1 Drone Launches . | . . . . Drone Recoveries . | . . . . Exploration | -11 -10 -9 -9 ------------- Run | Yrd Mat Mat Min Turns Passed 2086 | 130 915 827 214 Spaces Moved 1078 | 71 471 478 58 Core 132 | 20 . 54 58 Treads 525 | 51 471 3 . Legs 122 | . . 122 . Wheels 299 | . . 299 . Hover . | . . . . Flight . | . . . . Fastest Speed 50 | 50 160 80 150 Average Speed 153 | 129 160 127 346 Slowest Speed 350 | 160 160 350 350 Overloaded Moves . | . . . . Propulsion Burnouts . | . . . . Robots Hopped . | . . . . Cave-ins Triggered . | . . . . Exploration Rate (%) 21 | 5 36 30 16 Regions Visited 3 Branch Regions 1 Pre-discovered Areas . | . . . . Known Exits Taken . | . . . . Unknown Exits Taken 3 | 1 1 1 . Scrap Searched 1 | . . . 1 Spaces Dug . | . . . . Terrain Destroyed 95 | 2 44 36 13 Melee . | . . . . Projectile 1 | . . . 1 AOE 94 | 2 44 36 12 Terrain Rammed . | . . . . Walls Destroyed . | . . . . Machines Disabled . | . . . . Actions | -11 -10 -9 -9 --------- Run | Yrd Mat Mat Min Total 1356 | 99 584 609 64 Wait 111 | . 72 39 . Move 1075 | 70 470 477 58 Hop . | . . . . Pick Up 31 | 14 7 9 1 Fast Attach 2 | . 1 1 . Attach 13 | 7 1 5 . Detach . | . . . . Swap 8 | . 3 5 . Drop 14 | 2 3 9 . Fire 97 | 6 27 59 5 Melee . | . . . . Ram 3 | . . 3 . Kick 2 | . . 2 . Crush . | . . . . Escape Stasis . | . . . . Rewire . | . . . . Trap . | . . . . Miscellaneous . | . . . . Route ------- -11/Scrapyard -10/Materials -9/Materials -9/Mines (discovered 1 exit: [*Mat]) History --------- Turn | Location | Event 4 | -11/Scrapyard | Discovered new exit (range 15) 131 | -11/Scrapyard | Entered Materials 300 | -10/Materials | Build established: Mutant 544 | -10/Materials | Discovered new exit (range 15) 1046 | -10/Materials | Entered another Materials area 1046 | -9/Materials | Evolved 2 slots: Propulsion x2 1174 | -9/Materials | Repaired Broken Grenade Launcher 1362 | -9/Materials | Build established: Scavenger-Mutant 1562 | -9/Materials | Core integrity fell below 50% 1789 | -9/Materials | Discovered new exit (range 16) 1839 | -9/Materials | Build established: Mutant 1873 | -9/Materials | Entered Mines 1947 | -9/Mines | Learned Materials interactive machine intel 2056 | -9/Mines | Assembled infested the area 2069 | -9/Mines | Discovered new exit (range 6) 2084 | -9/Mines | Core integrity fell below 20% 2087 | -9/Mines | Destroyed by G-34 Mercenary with Small Laser Last Messages --------------- 01883_ S-10 Pest destroyed. 01925_ Searching scrap... 01925_ Found Beam Rifle. 01925_ Found Visual Processing Unit. 01925_ Found Imp. Treads. 01925_ Found 27 Matter. 01926_ Acquired 21 matter. 01932_ Acquired Visual Processing Unit. 01939_ R-06 Scavenger collects Lgt. Assault Rifle. 01947_ Acquired derelict log, extracted data. Data stored: Materials interactive machine intel. 02056_ ALERT: Infestation in the mines, dispatching Demolisher response squad. 02069_ EXIT=FOUND 02080_ Pulverizer disabled. 02080_ B-36 Bruiser destroyed. 02081_ Imp. Ion Engine destroyed. 02081_ Grenade Launcher destroyed. Map ----- +----------------------------------------------------+ | ????# #??????? #???????????? | | ????# #??????? ???????????? | | ????# "" #######? #???????????? | | ????# [=%#?# #???????????? | | ????# ##### #?# #???????????? | | ????# #??# ### #???????????? | | ????# [% ##??# #???????????? | | ????### ##???##### #???????????? | | ??????#######?????#### #???????????? | | ??????????????????# #???????????? | | ??????????????????# #???????????? | | ??????????????????# ####???????????? | | ??????????????????# #??????????????? | | ?????????????###### #??????????????? | | ?????????????# #??????????????? | | ?????????????# ######??????????????? | | ?????????????# #???????????????????? | | ?????????????# #???????????????????? | | ?????????????# #???????????????????? | | ???########### #???????????????????? | | ???# ## ##??????????????????? | | ???# # ##?????????????????? | | ???# #?????????????????? | | ???# #?????????????????? | | ???# < ###?????????????????? | | ???# @ #?????????????????? | | ???# #?????????????????? | | ???# " g ##?????????????????? | | ???# " # ##??????????????????? | | ???# " %! ###???????????????????? | | ???# d #?????????????????????? | | ???### ?????????????????????? | | ?????# ! ?????????????????????? | | ?????# d % ?????????????????????? | | ?????# = #????????????????????? | | ????? #????????????????????? | | ????# #????????????????????? | | ????## %= ##????????????????????? | | ?????# ??????????????????????? | | ??????? % %??????????????????????? | | ????????? ??????????????????????? | | ???????????????????????????????????? | | ???????????????????????????????????? | | ???????????????????????????????????? | | ???????????????????????????????????? | | ???????????????????????????????????? | | ???????????????????????????????????? | | ???????????????????????????????????? | | ???????????????????????????????????? | | ???????????????????????????????????? | +----------------------------------------------------+ Best States ------------- Heat Dissipation 28 Energy Generation 12 Energy Capacity 265 Matter Stores 300 Matter Capacity 300 Sight Range 18 Terrain Scan Density 10 Evasion (%) 55 Recoil Reduction 2 Item Schematics ----------------- None Robot Schematics ------------------ None Fabricated ------------ Nothing Alien Tech Used ----------------- None Achievements -------------- None Challenges ------------ None Game ------ Seed DimensionalDisposableNetwork Manual? 0 Play Time 00:19:23 Cumulative 18.2 hours Start 2024.05.02 @ 08:33:43 End 2024.05.02 @ 08:52:25 Sessions 1 Manual Loads 0 Difficulty Rogue Special Mode None Game No. 53 Rogue 53 Adventurer 0 Explorer 0 Win Type - Total 0 Types 0/0/0/0/0/0/0/0/0 Lore% 13 Gallery% 29 Achievement% 21 Wizard Run 0 Options --------- Layout 1 ASCII 0 Keyboard 0 Movement Arrows Keybinds 0 Fullscreen 1 Font 16/SmallcapsGlow Map View 25x20 Zoom Use 95% Tactical HUD 1 Map Filters NONE Filters NONE Steam SD RUN: beeff22e-7a66-4070-b76d-73aceba29c66